fUSD/lending_fUSD_20260419
["ID","MTS","AMOUNT","RATE_DAILY","PERIOD"]
[420820665,1776579038672,-359.96230042,9.668e-05,2]
[420820666,1776579038688,-2008.31450221,9.668e-05,2]
[420820667,1776579038708,-9015.85600549,9.668e-05,2]
[420820668,1776579038721,-866.12932493,9.668e-05,2]
[420820669,1776579038745,-1715.08907949,9.668e-05,2]
[420820674,1776579040457,-297.0302,9.668e-05,2]
[420820675,1776579040878,-6637.39503157,9.668e-05,2]
[420820676,1776579040932,-335.38,9.668e-05,2]
[420820677,1776579040987,-13140.60762315,9.668e-05,2]
[420820747,1776579043557,-192.80922118,9.381e-05,2]
[420820748,1776579043567,-724.37024781,9.668e-05,2]
[420820759,1776579046709,-1777.293386,9.668e-05,2]
[420820762,1776579052771,10000.0,7.22e-05,2]
[420820763,1776579063271,10000.0,8e-05,10]
[420820764,1776579089155,348.46,0.000328,120]
[420820765,1776579104476,161.42,0.000328,120]
[420820766,1776579107542,500.0,0.0003287,120]
[420820768,1776579187370,2178.02,0.00032876,120]
[420820770,1776579273760,400000.0,0.0003287,120]
[420820771,1776579383383,1500.0,0.00032876,120]
[420820772,1776579385005,1750.85265468,0.00032547,120]
[420820773,1776579390269,400.0,0.0003,120]
[420820774,1776579398041,500.0,0.00032,120]
[420820775,1776579441069,500.0,0.00032,120]
[420820776,1776579457605,500.0,0.00032877,120]
[420820777,1776579480264,483.45139989,0.00032876,120]
[420820778,1776579500796,600.0,0.00032,120]
[420820780,1776579517178,500.0,0.00032877,120]
[420820781,1776579530362,500.0,0.00032877,120]
[420820782,1776579531406,500.0,0.00032877,120]
[420820783,1776579532413,500.0,0.00032877,120]
[420820784,1776579533375,500.0,0.00032877,120]
[420820785,1776579535000,500.0,0.00032877,120]
[420820786,1776579537600,500.0,0.00032877,120]
[420820787,1776579537697,500.0,0.00032877,120]
[420820788,1776579538752,500.0,0.00032877,120]
[420820789,1776579539843,500.0,0.00032877,120]
[420820790,1776579541446,500.0,0.00032877,120]
[420820791,1776579542493,500.0,0.00032877,120]
[420820793,1776579601195,240.35972052,0.00017795,120]
[420820794,1776579701449,400.0,0.00032,120]
[420820795,1776579702990,335.66,0.00032847,120]
[420820796,1776579865747,1200.389,0.00032877,120]
[420820799,1776579884571,600.0,0.00032,120]
[420820800,1776579914007,1157.7,0.00032877,120]
[420820811,1776580112301,500.0,0.00032877,120]
[420820812,1776580114053,1756.503623,0.00032877,120]
[420820813,1776580121401,500.0,0.00032877,120]
[420820814,1776580132825,500.0,0.00032877,120]
[420820815,1776580139999,400.0,0.0003,120]
[420820816,1776580205526,150.0,0.00017795,120]
[420820817,1776580205609,210.53958077,0.00017795,120]
[420820818,1776580231489,-300.0,9.468e-05,2]
[420820819,1776580231545,-6482.8903,9.468e-05,2]
[420820820,1776580231554,-15.03955065,9.568e-05,2]
[420820821,1776580231603,-177.76967053,9.568e-05,2]
[420820822,1776580231612,-1000.0,9.568e-05,2]
[420820823,1776580231621,-1894.04914173,9.568e-05,2]
[420820824,1776580231659,-1351.1837267,9.568e-05,2]
[420820851,1776580237710,-816.62506821,9.568e-05,2]
[420820852,1776580237768,-2330.10212252,9.568e-05,2]
[420820919,1776580246218,-3016.36,9.568e-05,2]
[420820920,1776580246229,-2433.81134812,9.568e-05,2]
[420820921,1776580246246,-2260.59,9.568e-05,2]
[420820922,1776580246273,-507.0,9.568e-05,2]
[420820923,1776580246436,-411.34639272,9.568e-05,2]
[420820924,1776580246445,-1893.31820828,9.568e-05,2]
[420820925,1776580246457,-3106.68179172,9.568e-05,2]
[420820926,1776580246466,-63945.87479368,9.568e-05,2]
[420820957,1776580281565,1000.0,0.00032876,120]
[420820958,1776580292630,1000.0,0.00032876,120]
[420820959,1776580315640,625.0,0.00032876,120]
[420820960,1776580328424,1000.0,0.00032876,120]
[420820961,1776580338732,1000.0,0.00032876,120]
[420820962,1776580380481,1000.0,0.00032876,120]
[420820963,1776580398769,599.85950154,0.00032876,120]
[420820964,1776580460294,507.16,0.00027438,120]
[420820965,1776580460542,507.16,0.00028176,120]
[420820966,1776580460776,507.16,0.00028176,120]
[420820967,1776580461195,507.16,0.00028176,120]
[420820968,1776580461425,507.16,0.00028176,120]
[420820969,1776580461664,507.16,0.00028176,120]
[420820970,1776580628590,744.77027962,0.00032876,120]
[420820971,1776580648255,258.45,0.00030411,120]
[420820972,1776580658068,10000.0,0.00032876,120]
[420820973,1776580665812,10000.0,0.00032876,120]
[420820974,1776580666470,5300.0,0.00032877,120]
[420820975,1776580666641,1000.0,0.00032876,120]
[420820976,1776580676377,10000.0,0.00032876,120]
[420820977,1776580684891,10000.0,0.00032876,120]
[420820978,1776580694123,233.0,0.00032877,120]
[420820979,1776580694903,10000.0,0.00032876,120]
[420820980,1776580695342,1000.0,0.00032876,120]
[420820981,1776580728432,782.9,0.00027438,120]
[420820982,1776580728659,782.9,0.00028176,120]
[420820983,1776580728884,782.9,0.00028176,120]
[420820984,1776580729120,782.9,0.00028176,120]
[420820985,1776580729346,782.9,0.00028176,120]
[420820986,1776580729641,783.08946148,0.00028176,120]
[420820987,1776580793012,628.58,0.00027438,120]
[420820988,1776580793282,628.58,0.00028176,120]
[420820989,1776580793518,628.58,0.00028176,120]
[420820990,1776580793749,628.58,0.00028176,120]
[420820991,1776580793977,628.58,0.00028176,120]
[420820992,1776580794212,628.76246468,0.00028176,120]
[420820994,1776580997673,500.0,0.00032876,120]
[420820995,1776581008960,500.0,0.00032876,120]
[420820996,1776581033698,500.0,0.00032876,120]
[420820997,1776581165122,7877.0,0.00032877,120]
[420821004,1776581293650,500.0,0.00027455,120]
[420821005,1776581294025,500.0,0.00027455,120]
[420821006,1776581294271,500.0,0.00027455,120]
[420821007,1776581294536,314.44,0.00027455,120]
[420821012,1776581433048,-150.0,8.408e-05,2]
[420821013,1776581433058,-600.0,8.9e-05,3]
[420821014,1776581433067,-1300.0,9e-05,3]
[420821015,1776581433077,-470.82143017,9.181e-05,2]
[420821016,1776581433089,-280.0,9.181e-05,2]
[420821017,1776581433100,-530.12669042,9.181e-05,2]
[420821018,1776581433112,-705.15987941,9.181e-05,2]
[420821019,1776581433123,-152.184,9.181e-05,2]
[420821020,1776581433132,-192.80922118,9.181e-05,2]
[420821021,1776581433142,-267.73,9.24e-05,2]
[420821022,1776581433152,-194.80530298,9.249e-05,2]
[420821023,1776581433161,-300.0,9.249e-05,2]
[420821024,1776581433171,-2500.0,9.268e-05,2]
[420821025,1776581433181,-2000.0,9.33e-05,2]
[420821026,1776581433190,-162.97914855,9.354e-05,2]
[420821027,1776581433200,-1600.0,9.367e-05,2]
[420821028,1776581433209,-185.21,9.367e-05,2]
[420821029,1776581433222,-500.0,9.367e-05,2]
[420821030,1776581433232,-500.0,9.367e-05,2]
[420821031,1776581433241,-500.0,9.367e-05,2]
[420821032,1776581433251,-247.96355022,9.367e-05,2]
[420821033,1776581433260,-245.09522846,9.367e-05,2]
[420821034,1776581433270,-371.95683739,9.367e-05,2]
[420821035,1776581433279,-500.0,9.367e-05,2]
[420821036,1776581433288,-500.0,9.367e-05,2]
[420821037,1776581433297,-500.0,9.367e-05,2]
[420821038,1776581433307,-500.0,9.367e-05,2]
[420821039,1776581433316,-500.0,9.367e-05,2]
[420821040,1776581433326,-500.0,9.367e-05,2]
[420821041,1776581433335,-500.0,9.367e-05,2]
[420821042,1776581433344,-500.0,9.367e-05,2]
[420821043,1776581433354,-500.0,9.367e-05,2]
[420821044,1776581433364,-500.0,9.367e-05,2]
[420821045,1776581433373,-500.0,9.367e-05,2]
[420821046,1776581433383,-500.0,9.367e-05,2]
[420821047,1776581433393,-500.0,9.367e-05,2]
[420821048,1776581433402,-500.0,9.367e-05,2]
[420821049,1776581433412,-500.0,9.367e-05,2]
[420821050,1776581433421,-500.0,9.367e-05,2]
[420821051,1776581433431,-500.0,9.367e-05,2]
[420821052,1776581433440,-500.0,9.367e-05,2]
[420821053,1776581433450,-217.85088322,9.367e-05,2]
[420821054,1776581433459,-500.0,9.367e-05,2]
[420821055,1776581433469,-499.99999999,9.367e-05,2]
[420821056,1776581433478,-500.0,9.367e-05,2]
[420821057,1776581433488,-500.0,9.367e-05,2]
[420821058,1776581433497,-500.0,9.367e-05,2]
[420821059,1776581433507,-500.0,9.367e-05,2]
[420821060,1776581433516,-500.0,9.367e-05,2]
[420821061,1776581433527,-500.0,9.367e-05,2]
[420821062,1776581433536,-500.0,9.367e-05,2]
[420821063,1776581433546,-500.0,9.367e-05,2]
[420821064,1776581433556,-300.0,9.367e-05,2]
[420821065,1776581433566,-500.0,9.367e-05,2]
[420821066,1776581433575,-500.0,9.367e-05,2]
[420821067,1776581433585,-563.93547848,9.367e-05,2]
[420821068,1776581433595,-500.0,9.367e-05,2]
[420821069,1776581433604,-500.0,9.367e-05,2]
[420821070,1776581433614,-500.0,9.367e-05,2]
[420821071,1776581433624,-500.0,9.367e-05,2]
[420821072,1776581433634,-500.0,9.367e-05,2]
[420821073,1776581433643,-500.0,9.367e-05,2]
[420821074,1776581433654,-500.0,9.367e-05,2]
[420821075,1776581433665,-500.0,9.367e-05,2]
[420821076,1776581433675,-500.0,9.367e-05,2]
[420821077,1776581433684,-500.0,9.367e-05,2]
[420821078,1776581433694,-428.16976725,9.367e-05,2]
[420821079,1776581433703,-500.0,9.367e-05,2]
[420821080,1776581433713,-500.0,9.367e-05,2]
[420821081,1776581433724,-500.0,9.367e-05,2]
[420821082,1776581433734,-500.0,9.367e-05,2]
[420821083,1776581433743,-160.56833518,9.367e-05,2]
[420821084,1776581433753,-500.0,9.367e-05,2]
[420821085,1776581433762,-160.2669701,9.367e-05,2]
[420821086,1776581433771,-292.54185534,9.367e-05,2]
[420821087,1776581433781,-339.02870549,9.367e-05,2]
[420821088,1776581433790,-243397.6338008,9.368e-05,2]
[420821089,1776581433804,-31099.42709355,9.368e-05,2]
[420821090,1776581433815,-55759.72943927,9.368e-05,2]
[420821093,1776581437798,-499.40535172,9.367e-05,2]
[420821094,1776581437810,-336.07889842,9.367e-05,2]
[420821095,1776581437822,-7020.48609576,9.367e-05,2]
[420821096,1776581437833,-104336.13787778,9.368e-05,2]
[420821097,1776581438115,-2331.49787748,9.368e-05,2]
[420821182,1776581440051,-4334.18179002,9.368e-05,2]
[420821183,1776581440472,-6378.71695545,9.368e-05,2]
[420821196,1776581442790,-361430.7577872,9.368e-05,2]
[420821271,1776581444656,-386.77708015,9.368e-05,2]
[420821274,1776581445840,-3276.80224774,9.368e-05,2]
[420821275,1776581445852,-1209.8829,9.368e-05,2]
[420821276,1776581445998,-136561.09366708,9.368e-05,2]
[420821340,1776581482911,220.0,0.00032877,120]
[420821341,1776581502716,220.0,0.00032877,120]
[420821342,1776581523211,220.0,0.00032877,120]
[420821343,1776581543762,220.0,0.00032877,120]
[420821344,1776581591915,200.0,0.000328,120]
[420821345,1776581714523,837.76494743,0.00032876,120]
[420821346,1776581740661,5103.12,0.00032877,120]
[420821347,1776581887250,300.0,0.000327,120]
[420821349,1776581938022,606.15135526,0.0003,120]
[420821350,1776581995972,168.81476278,0.0003,120]
[420821351,1776582039278,566.40494687,0.00029999,120]
[420821352,1776582047072,1005.22310676,0.00032876,120]
[420821354,1776582111917,364.496446,0.00032603,120]
[420821356,1776582167237,780.0,0.00032877,120]
[420821357,1776582198944,760.35362871,0.00032877,120]
[420821359,1776582217736,273.71,0.0003269,120]
[420821360,1776582234046,162374.05376473,0.00032,120]
[420821361,1776582298547,2005.14,0.00032876,120]
[420821362,1776582347312,3700.75,0.00032877,120]
[420821376,1776582631927,-500.0,9e-05,3]
[420821377,1776582631937,-1438.21130598,9.083e-05,2]
[420821391,1776582638247,-150.67569402,9.083e-05,2]
[420821392,1776582638258,-152.184,9.083e-05,2]
[420821393,1776582638268,-150.0,9.167e-05,2]
[420821394,1776582638278,-300.0,9.167e-05,2]
[420821395,1776582638288,-1913.76466156,9.168e-05,2]
[420821396,1776582638301,-261.09668,9.168e-05,2]
[420821397,1776582638386,-3761.75294877,9.168e-05,2]
[420821428,1776582640201,-436.77063239,9.168e-05,2]
[420821429,1776582640213,-1042.62701332,9.168e-05,2]
[420821430,1776582640258,-300.0,9.168e-05,2]
[420821431,1776582640473,-2088.11203752,9.168e-05,2]
[420821492,1776582643174,-478.51655685,9.168e-05,2]
[420821493,1776582643334,-1290.94901833,9.168e-05,2]
[420821506,1776582649690,-15366.605,9.168e-05,2]
[420821507,1776582649746,-97951.61715126,9.168e-05,2]
[420821508,1776582649757,-2500.0,9.168e-05,2]
[420821509,1776582649766,-500.0,9.267e-05,2]
[420821510,1776582649776,-460.36978617,9.267e-05,2]
[420821511,1776582649786,-500.0,9.267e-05,2]
[420821512,1776582649795,-613.09454258,9.267e-05,2]
[420821513,1776582649805,-200.87950197,9.267e-05,2]
[420821514,1776582649816,-500.0,9.267e-05,2]
[420821515,1776582649826,-371.56665992,9.267e-05,2]
[420821516,1776582649836,-500.0,9.267e-05,2]
[420821517,1776582649846,-373.57448516,9.267e-05,2]
[420821518,1776582649855,-7975.1439,9.268e-05,2]
[420821519,1776582649865,-38073.75397294,9.268e-05,2]
[420821520,1776582649877,-18033.72290876,9.268e-05,2]
[420821521,1776582651961,178.3,0.00032876,120]
[420821522,1776582717144,1000.0,0.00032877,120]
[420821523,1776582729475,1013.84275776,0.00032876,120]
[420821524,1776582769147,1000.0,0.00032877,120]
[420821525,1776582790051,1000.0,0.00032876,120]
[420821526,1776582807210,500.0,0.00032877,120]
[420821527,1776582808979,1000.0,0.00032877,120]
[420821528,1776582864570,1000.0,0.00032877,120]
[420821529,1776582884007,633.95,0.00027671,120]
[420821530,1776582884254,633.95,0.00027671,120]
[420821531,1776582884512,633.95,0.00027671,120]
[420821532,1776582884738,633.95,0.00027671,120]
[420821533,1776582884993,634.04255361,0.00027671,120]
[420821535,1776582916803,506.83198766,0.00032877,120]
[420821536,1776582970073,450.725068,0.00032603,120]
[420821539,1776583343900,522.13,0.00032876,120]
[420821540,1776583514630,163.1,0.00032877,120]
[420821541,1776583693004,500.0,0.00032876,120]
[420821542,1776583693238,500.0,0.00032876,120]
[420821543,1776583693559,500.0,0.00032876,120]
[420821544,1776583693785,500.0,0.00032876,120]
[420821545,1776583694015,500.0,0.00032876,120]
[420821546,1776583694253,500.0,0.00032876,120]
[420821547,1776583696575,500.0,0.00032876,120]
[420821548,1776583696891,500.0,0.00032876,120]
[420821549,1776583696961,500.0,0.00032876,120]
[420821550,1776583697021,598.63888191,0.00032876,120]
[420821551,1776583709922,206.76,0.00030411,120]
[420821562,1776583832271,-1600.0,8.166e-05,2]
[420821563,1776583832281,-150.0,8.232e-05,2]
[420821564,1776583832290,-300.0,8.301e-05,2]
[420821565,1776583832300,-300.0,8.302e-05,2]
[420821566,1776583832310,-2000.0,8.372e-05,2]
[420821567,1776583832320,-300.0,8.435e-05,2]
[420821568,1776583832329,-1200.0,8.52e-05,2]
[420821569,1776583832338,-2765.17247841,8.521e-05,2]
[420821570,1776583832349,-2284.59752159,8.521e-05,2]
[420821571,1776583832358,-200.0,8.528e-05,2]
[420821572,1776583832367,-300.0,8.53e-05,2]
[420821573,1776583832376,-150.0,8.532e-05,2]
[420821574,1776583832386,-299.97,8.605e-05,2]
[420821575,1776583832396,-430.98,8.776e-05,2]
[420821576,1776583832406,-150.0,8.875e-05,2]
[420821577,1776583832416,-150.0,8.881e-05,2]
[420821578,1776583832426,-126039.0966,8.882e-05,2]
[420821579,1776583832437,-1667.858,8.887e-05,2]
[420821580,1776583832447,-161.695,8.887e-05,2]
[420821581,1776583832458,-7975.1439,8.968e-05,2]
[420821582,1776583832467,-2500.0,8.968e-05,2]
[420821583,1776583832476,-3033.55993546,8.982e-05,2]
[420821584,1776583832486,-250.0,8.982e-05,2]
[420821585,1776583832498,-5000.0,8.982e-05,2]
[420821586,1776583832509,-315.46954088,8.982e-05,2]
[420821587,1776583832518,-300.0,8.982e-05,2]
[420821588,1776583832527,-250.0,8.982e-05,2]
[420821589,1776583832537,-300.0,9.055e-05,2]
[420821590,1776583832546,-5000.0,9.055e-05,2]
[420821591,1776583832555,-172.58589559,9.067e-05,2]
[420821592,1776583832564,-500.0,9.067e-05,2]
[420821593,1776583832574,-500.0,9.067e-05,2]
[420821594,1776583832583,-500.0,9.067e-05,2]
[420821595,1776583832592,-456.60715891,9.067e-05,2]
[420821596,1776583832601,-500.0,9.067e-05,2]
[420821597,1776583832611,-500.0,9.067e-05,2]
[420821599,1776583832620,-500.0,9.067e-05,2]
[420821600,1776583832630,-500.0,9.067e-05,2]
[420821601,1776583832639,-500.0,9.067e-05,2]
[420821602,1776583832649,-500.0,9.067e-05,2]
[420821603,1776583832659,-254.6328312,9.067e-05,2]
[420821604,1776583832669,-361.23207176,9.067e-05,2]
[420821606,1776583832679,-500.0,9.067e-05,2]
[420821607,1776583832689,-327.58535769,9.067e-05,2]
[420821608,1776583832698,-500.0,9.067e-05,2]
[420821609,1776583832708,-611.50213961,9.067e-05,2]
[420821610,1776583832717,-261.46999798,9.067e-05,2]
[420821611,1776583832727,-500.0,9.067e-05,2]
[420821612,1776583832736,-288.11093585,9.067e-05,2]
[420821613,1776583832746,-262.07234555,9.067e-05,2]
[420821614,1776583832755,-613.09454258,9.067e-05,2]
[420821615,1776583832765,-171489.86857588,9.068e-05,2]
[420821618,1776583832777,-4612.99999999,9.068e-05,2]
[420821620,1776583832788,-3756.05,9.068e-05,2]
[420821622,1776583832800,-531.73649619,9.068e-05,2]
[420821628,1776583832886,-4578.01379668,9.068e-05,2]
[420821629,1776583832897,-565.98295882,9.068e-05,2]
[420821630,1776583832909,-94838.71839584,9.068e-05,2]
[420821635,1776583838523,-584.7504,9.068e-05,2]
[420821636,1776583838535,-42434.04377598,9.068e-05,2]
[420821637,1776583838546,-12000.83915116,9.068e-05,2]
[420821638,1776583838561,-149999.99999998,9.068e-05,2]
[420821639,1776583838634,-74.07315411,9.068e-05,2]
[420821640,1776583838646,-3752.66918328,9.068e-05,2]
[420821641,1776583838657,-21246.99377201,9.068e-05,2]
[420821642,1776583838680,-39030.62184008,9.068e-05,2]
[420821643,1776583838690,-409.73323031,9.07e-05,2]
[420821644,1776583838699,-333.59525974,9.07e-05,2]
[420821645,1776583838709,-578.20924308,9.07e-05,2]
[420821646,1776583838718,-170.43587252,9.07e-05,2]
[420821647,1776583838727,-227.34163157,9.07e-05,2]
[420821648,1776583838736,-235.75327194,9.07e-05,2]
[420821649,1776583838746,-244.476143,9.07e-05,2]
[420821650,1776583838765,-253.52176029,9.07e-05,2]
[420821651,1776583838776,-262.90206542,9.07e-05,2]
[420821652,1776583838786,-272.62944185,9.07e-05,2]
[420821653,1776583838796,-282.71673119,9.07e-05,2]
[420821654,1776583838806,-293.17725025,9.07e-05,2]
[420821655,1776583838816,-304.02480851,9.07e-05,2]
[420821656,1776583838826,-315.27372642,9.07e-05,2]
[420821657,1776583838835,-194.40934325,9.07e-05,2]
[420821658,1776583838845,-192.73096839,9.08e-05,2]
[420821660,1776583838855,-150.0,9.12e-05,2]
[420821662,1776583838866,-1600.0,9.186e-05,2]
[420821664,1776583838876,-1500.0,9.248e-05,2]
[420821666,1776583838886,-151.0,9.265e-05,2]
[420821668,1776583838895,-158.73,9.317e-05,2]
[420821671,1776583838906,-150.0,9.336e-05,2]
[420821673,1776583838916,-888.6282459,9.339e-05,2]
[420821675,1776583838925,-3598.5869076,9.339e-05,2]
[420821677,1776583838934,-2144.0296541,9.339e-05,2]
[420821679,1776583838944,-1228.7009344,9.339e-05,2]
[420821681,1776583838954,-3511.2861591,9.339e-05,2]
[420821683,1776583838963,-9561.1331036,9.339e-05,2]
[420821685,1776583838973,-1413.976358,9.368e-05,2]
[420821687,1776583838983,-2997.3309573,9.368e-05,2]
[420821689,1776583838992,-1680.0,9.372e-05,2]
[420821691,1776583839002,-393.0,9.383e-05,2]
[420821693,1776583839011,-301.6781285,9.401e-05,5]
[420821927,1776583843819,-2500.0,8.968e-05,2]
[420821929,1776583843828,-348.3218715,9.401e-05,5]
[420821931,1776583843838,-1668.45762947,9.418e-05,2]
[420821933,1776583843850,-331.54237053,9.418e-05,2]
[420821935,1776583843860,-150.0,9.42e-05,2]
[420821937,1776583843869,-167.71,9.634e-05,2]
[420821939,1776583843879,-377.0,9.656e-05,2]
[420821941,1776583843889,-150.0,9.72e-05,2]
[420821943,1776583843898,-398.0,9.744e-05,2]
[420821945,1776583843908,-398.0,9.757e-05,2]
[420821947,1776583843917,-398.0,9.761e-05,2]
[420821949,1776583843927,-255.0,9.77e-05,2]
[420821952,1776583843937,-398.0,9.779e-05,2]
[420821955,1776583843946,-398.0,9.794e-05,2]
[420821957,1776583843956,-398.0,9.797e-05,2]
[420821959,1776583843965,-398.0,9.803e-05,2]
[420821960,1776583843975,-398.0,9.822e-05,2]
[420821963,1776583843984,-398.0,9.824e-05,2]
[420821965,1776583843994,-398.0,9.841e-05,2]
[420821966,1776583844005,-398.0,9.847e-05,2]
[420821968,1776583844014,-250.0,9.863e-05,2]
[420821970,1776583844024,-725.83,9.868e-05,2]
[420821973,1776583844033,-398.0,9.869e-05,2]
[420821975,1776583844043,-398.0,9.877e-05,2]
[420821977,1776583844052,-398.0,9.879e-05,2]
[420821979,1776583844062,-398.0,9.883e-05,2]
[420821981,1776583844072,-398.0,9.91e-05,2]
[420821983,1776583844082,-398.0,9.918e-05,2]
[420821985,1776583844091,-208.83663844,9.918e-05,2]
[420821987,1776583844101,-398.0,9.93e-05,2]
[420821989,1776583844110,-398.0,9.948e-05,2]
[420821991,1776583844125,-398.0,9.948e-05,2]
[420821993,1776583844135,-398.0,9.949e-05,2]
[420821994,1776583844145,-398.0,9.964e-05,2]
[420821995,1776583844155,-398.0,9.965e-05,2]
[420821996,1776583844165,-155.353,9.985e-05,2]
[420821997,1776583844175,-151.0,9.998e-05,2]
[420821998,1776583844184,-151.0,9.998e-05,2]
[420821999,1776583844194,-34298.86753695,9.998e-05,2]
[420822003,1776583844322,-18232.20964575,9.998e-05,2]
[420822006,1776583844348,-8250.20850756,9.998e-05,2]
[420822025,1776583844541,-296.50193827,9.998e-05,2]
[420822026,1776583844554,-6000.0,9.998e-05,2]
[420822027,1776583844569,-1500.06025327,9.998e-05,2]
[420822031,1776583846479,-875.0,9.998e-05,2]
[420822032,1776583846703,-7147.5968756,9.998e-05,2]
[420822033,1776583846763,-2250.0,9.998e-05,2]
[420822034,1776583846880,-1149.9396,9.998e-05,2]
[420822035,1776583848213,-11619.31223683,9.998e-05,2]
[420822123,1776584356329,1127.99,0.00027656,120]
[420822124,1776584356385,1127.99,0.00028079,120]
[420822125,1776584356469,1127.99,0.00028079,120]
[420822126,1776584356693,1127.99,0.00028079,120]
[420822127,1776584357105,1127.99,0.00028079,120]
[420822128,1776584357348,1128.16232932,0.00028079,120]
[420822129,1776584434827,10000.0,0.00032877,120]
[420822130,1776584448941,10000.0,0.00032877,120]
[420822131,1776584465269,7768.9,0.00032877,120]
[420822132,1776584527208,150.0,0.0003287,120]
[420822133,1776584567987,-166.45,8.269e-05,2]
[420822134,1776584568010,-833.55,8.295e-05,2]
[420822135,1776584569125,-1000.0,8.295e-05,2]
[420822136,1776584569525,-380.9713117,8.295e-05,2]
[420822137,1776584569549,-150.0,8.321e-05,2]
[420822138,1776584569572,-300.0,8.37e-05,2]
[420822139,1776584569597,-169.0286883,8.42e-05,2]
[420822140,1776584569939,-66.8913117,8.42e-05,2]
[420822141,1776584569960,-500.0,8.462e-05,2]
[420822142,1776584569983,-300.0,8.465e-05,2]
[420822143,1776584570007,-133.1086883,8.562e-05,2]
[420822144,1776584570247,-33.7213117,8.562e-05,2]
[420822145,1776584570270,-165.61,8.562e-05,2]
[420822146,1776584570292,-182.93,8.562e-05,2]
[420822147,1776584570317,-150.0,8.6e-05,2]
[420822148,1776584570338,-166.45,8.61e-05,2]
[420822149,1776584570361,-150.0,8.834e-05,2]
[420822150,1776584570384,-151.2886883,8.866e-05,2]
[420822151,1776584570566,-1000.0,8.866e-05,2]
[420822152,1776584570873,-48.7113117,8.866e-05,2]
[420822153,1776584570899,-951.2886883,8.867e-05,2]
[420822154,1776584571173,-809.5483117,8.867e-05,2]
[420822155,1776584571196,-167.689,8.867e-05,2]
[420822156,1776584571218,-22.7626883,8.867e-05,2]
[420822157,1776584571641,-127.2373117,8.867e-05,2]
[420822158,1776584571668,-872.7626883,8.868e-05,2]
[420822159,1776584571950,-1000.0,8.868e-05,2]
[420822160,1776584573990,-1000.0,8.868e-05,2]
[420822161,1776584574045,-1000.0,8.868e-05,2]
[420822162,1776584574171,-1000.0,8.868e-05,2]
[420822163,1776584574237,-1000.0,8.868e-05,2]
[420822164,1776584574317,-1000.0,8.868e-05,2]
[420822165,1776584580122,-1000.0,8.868e-05,2]
[420822166,1776584580451,-1000.0,8.868e-05,2]
[420822167,1776584580754,-1000.0,8.868e-05,2]
[420822168,1776584581062,-1000.0,8.868e-05,2]
[420822169,1776584581470,-1000.0,8.868e-05,2]
[420822170,1776584581897,-1000.0,8.868e-05,2]
[420822171,1776584582332,-1000.0,8.868e-05,2]
[420822172,1776584582637,-1000.0,8.868e-05,2]
[420822173,1776584582961,-1000.0,8.868e-05,2]
[420822174,1776584583297,-1000.0,8.868e-05,2]
[420822175,1776584585981,-1000.0,8.868e-05,2]
[420822176,1776584586103,-1000.0,8.868e-05,2]
[420822177,1776584586200,-473.6241117,8.868e-05,2]
[420822178,1776584586629,-526.3758883,8.868e-05,2]
[420822179,1776584586692,-1000.0,8.868e-05,2]
[420822180,1776584586732,-1000.0,8.868e-05,2]
[420822181,1776584586792,-1000.0,8.868e-05,2]
[420822182,1776584590437,-1000.0,8.868e-05,2]
[420822183,1776584590774,-1000.0,8.868e-05,2]
[420822184,1776584591077,-1000.0,8.868e-05,2]
[420822185,1776584591379,-1000.0,8.868e-05,2]
[420822186,1776584591808,-1000.0,8.868e-05,2]
[420822187,1776584592269,-1000.0,8.868e-05,2]
[420822188,1776584592631,-1000.0,8.868e-05,2]
[420822189,1776584593083,-1000.0,8.868e-05,2]
[420822190,1776584593406,-1000.0,8.868e-05,2]
[420822191,1776584593814,-1000.0,8.868e-05,2]
[420822192,1776584594164,-1000.0,8.868e-05,2]
[420822193,1776584594578,-1000.0,8.868e-05,2]